fUSD/lending_fUSD_20250629
["ID","MTS","AMOUNT","RATE_DAILY","PERIOD"]
[368563283,1751211042580,-490.0,0.00021917,2]
[368563284,1751211042590,-490.0,0.00021917,2]
[368563285,1751211042599,-490.0,0.00021917,2]
[368563286,1751211042609,-490.0,0.00021917,2]
[368563287,1751211042618,-758.39,0.00021917,2]
[368563288,1751211042627,-492.43576328,0.00021917,2]
[368563289,1751211042636,-490.0,0.00021917,2]
[368563290,1751211042645,-522.25,0.00021917,2]
[368563291,1751211042655,-490.0,0.00021917,2]
[368563292,1751211042665,-490.0,0.00021917,2]
[368563293,1751211042674,-490.0,0.00021917,2]
[368563294,1751211042683,-564.8,0.00021917,2]
[368563295,1751211042693,-755.23,0.00021917,2]
[368563296,1751211042703,-490.0,0.00021917,2]
[368563297,1751211042713,-714.69,0.00021917,2]
[368563298,1751211042722,-490.0,0.00021917,2]
[368563299,1751211042732,-490.0,0.00021917,2]
[368563300,1751211042743,-490.0,0.00021917,2]
[368563301,1751211042753,-500.0,0.00021917,2]
[368563302,1751211042762,-1123.96,0.00021917,2]
[368563303,1751211042771,-671.39,0.00021917,2]
[368563304,1751211042781,-816.52,0.00021917,2]
[368563305,1751211042792,-490.0,0.00021917,2]
[368563306,1751211042802,-490.0,0.00021917,2]
[368563307,1751211042811,-490.0,0.00021917,2]
[368563308,1751211042820,-490.0,0.00021917,2]
[368563309,1751211042830,-490.0,0.00021917,2]
[368563310,1751211042839,-490.0,0.00021917,2]
[368563311,1751211042851,-490.0,0.00021917,2]
[368563312,1751211042861,-490.0,0.00021917,2]
[368563313,1751211042870,-490.0,0.00021917,2]
[368563314,1751211042880,-490.0,0.00021917,2]
[368563315,1751211042890,-490.0,0.00021917,2]
[368563316,1751211042899,-490.0,0.00021917,2]
[368563317,1751211042909,-490.0,0.00021917,2]
[368563318,1751211042919,-490.0,0.00021917,2]
[368563319,1751211042930,-490.0,0.00021917,2]
[368563320,1751211042940,-1013.83,0.00021917,2]
[368563321,1751211042950,-817.0,0.00021917,2]
[368563322,1751211042959,-490.0,0.00021917,2]
[368563323,1751211042970,-490.0,0.00021917,2]
[368563324,1751211042979,-484.16161578,0.00021917,2]
[368563326,1751211042989,-611.39180073,0.00021917,2]
[368563327,1751211042998,-490.0,0.00021917,2]
[368563329,1751211043008,-490.0,0.00021917,2]
[368563331,1751211043018,-490.0,0.00021917,2]
[368563332,1751211043029,-490.0,0.00021917,2]
[368563333,1751211043039,-603.7,0.00021917,2]
[368563334,1751211043049,-562.7074132,0.00021917,2]
[368563335,1751211043058,-490.0,0.00021917,2]
[368563336,1751211043068,-490.0,0.00021917,2]
[368563337,1751211043078,-490.0,0.00021917,2]
[368563338,1751211043088,-490.0,0.00021917,2]
[368563339,1751211043099,-490.0,0.00021917,2]
[368563340,1751211043110,-663.92,0.00021917,2]
[368563341,1751211043119,-490.0,0.00021917,2]
[368563342,1751211043130,-490.0,0.00021917,2]
[368563343,1751211043140,-490.0,0.00021917,2]
[368563344,1751211043150,-490.0,0.00021917,2]
[368563345,1751211043160,-490.0,0.00021917,2]
[368563346,1751211043170,-490.0,0.00021917,2]
[368563347,1751211043181,-511.61,0.00021917,2]
[368563348,1751211043191,-490.0,0.00021917,2]
[368563349,1751211043201,-1229.07,0.00021917,2]
[368563350,1751211043211,-490.0,0.00021917,2]
[368563351,1751211043221,-498.81168416,0.00021917,2]
[368563352,1751211043231,-490.0,0.00021917,2]
[368563353,1751211043241,-490.0,0.00021917,2]
[368563354,1751211043251,-490.0,0.00021917,2]
[368563355,1751211043260,-490.0,0.00021917,2]
[368563356,1751211043269,-490.0,0.00021917,2]
[368563357,1751211043281,-490.0,0.00021917,2]
[368563358,1751211043291,-490.0,0.00021917,2]
[368563359,1751211043300,-827.34,0.00021917,2]
[368563360,1751211043309,-546.87,0.00021917,2]
[368563361,1751211043320,-490.0,0.00021917,2]
[368563362,1751211043331,-490.0,0.00021917,2]
[368563363,1751211043340,-490.0,0.00021917,2]
[368563364,1751211043349,-490.0,0.00021917,2]
[368563365,1751211043359,-778.78,0.00021917,2]
[368563366,1751211043369,-490.0,0.00021917,2]
[368563367,1751211043378,-490.0,0.00021917,2]
[368563368,1751211043387,-490.0,0.00021917,2]
[368563369,1751211043397,-490.0,0.00021917,2]
[368563370,1751211043406,-490.0,0.00021917,2]
[368563371,1751211043416,-490.0,0.00021917,2]
[368563372,1751211043426,-490.0,0.00021917,2]
[368563373,1751211043436,-496.76341023,0.00021917,2]
[368563374,1751211043445,-490.0,0.00021917,2]
[368563375,1751211043455,-490.0,0.00021917,2]
[368563376,1751211043465,-1072.55,0.00021917,2]
[368563377,1751211043475,-509.46,0.00021917,2]
[368563378,1751211043484,-490.0,0.00021917,2]
[368563379,1751211043494,-609.45,0.00021917,2]
[368563381,1751211043503,-490.0,0.00021917,2]
[368563382,1751211043513,-490.0,0.00021917,2]
[368563383,1751211043523,-490.0,0.00021917,2]
[368563384,1751211043532,-490.0,0.00021917,2]
[368563385,1751211043542,-490.0,0.00021917,2]
[368563386,1751211043552,-490.0,0.00021917,2]
[368563387,1751211043562,-865.61,0.00021917,2]
[368563388,1751211043572,-490.0,0.00021917,2]
[368563389,1751211043581,-490.0,0.00021917,2]
[368563390,1751211043591,-1338.06,0.00021917,2]
[368563391,1751211043601,-490.0,0.00021917,2]
[368563392,1751211043610,-490.0,0.00021917,2]
[368563393,1751211043620,-490.0,0.00021917,2]
[368563394,1751211043629,-490.0,0.00021917,2]
[368563395,1751211043639,-490.0,0.00021917,2]
[368563396,1751211043650,-490.0,0.00021917,2]
[368563397,1751211043660,-490.0,0.00021917,2]
[368563398,1751211043670,-490.0,0.00021917,2]
[368563400,1751211043679,-490.0,0.00021917,2]
[368563402,1751211043689,-490.0,0.00021917,2]
[368563404,1751211043698,-490.0,0.00021917,2]
[368563406,1751211043709,-490.0,0.00021917,2]
[368563408,1751211043718,-1119.33,0.00021917,2]
[368563410,1751211043728,-490.0,0.00021917,2]
[368563411,1751211043737,-731.45,0.00021917,2]
[368563413,1751211043746,-490.0,0.00021917,2]
[368563415,1751211043756,-490.0,0.00021917,2]
[368563418,1751211043765,-490.0,0.00021917,2]
[368563421,1751211043774,-490.0,0.00021917,2]
[368563424,1751211043783,-490.0,0.00021917,2]
[368563426,1751211043792,-490.0,0.00021917,2]
[368563428,1751211043802,-610.19,0.00021917,2]
[368563430,1751211043811,-490.0,0.00021917,2]
[368563432,1751211043820,-553.38,0.00021917,2]
[368563434,1751211043829,-490.0,0.00021917,2]
[368563436,1751211043838,-575.15,0.00021917,2]
[368563438,1751211043848,-612.9,0.00021917,2]
[368563440,1751211043857,-490.0,0.00021917,2]
[368563442,1751211043867,-490.0,0.00021917,2]
[368563444,1751211043876,-490.0,0.00021917,2]
[368563446,1751211043885,-490.0,0.00021917,2]
[368563448,1751211043895,-490.0,0.00021917,2]
[368563450,1751211043904,-433.64811807,0.00021917,2]
[368563452,1751211043913,-608.51,0.00021917,2]
[368563454,1751211043923,-490.0,0.00021917,2]
[368563456,1751211043932,-490.0,0.00021917,2]
[368563458,1751211043942,-490.0,0.00021917,2]
[368563460,1751211043951,-490.0,0.00021917,2]
[368563462,1751211043963,-1870.44,0.00021917,2]
[368563464,1751211043973,-1823.1,0.00021917,2]
[368563466,1751211043982,-500.0,0.00021917,2]
[368563467,1751211043992,-490.0,0.00021917,2]
[368563470,1751211044001,-500.0,0.00021917,2]
[368563471,1751211044011,-490.0,0.00021917,2]
[368563473,1751211044020,-490.0,0.00021917,2]
[368563475,1751211044029,-490.0,0.00021917,2]
[368563477,1751211044038,-2507.62,0.00021917,2]
[368563479,1751211044048,-658.9,0.00021917,2]
[368563481,1751211044057,-490.0,0.00021917,2]
[368563483,1751211044067,-166.39188668,0.00021917,2]
[368563485,1751211044076,-500.0,0.00021917,2]
[368563487,1751211044085,-564.73398575,0.00021917,2]
[368563489,1751211044095,-709.09,0.00021917,2]
[368563491,1751211044104,-150.0,0.00021917,2]
[368563493,1751211044114,-490.0,0.00021917,2]
[368563495,1751211044124,-588.66,0.00021917,2]
[368563497,1751211044133,-500.0,0.00021917,2]
[368563499,1751211044142,-358.19919667,0.00021917,2]
[368563501,1751211044152,-598.0,0.00021917,2]
[368563503,1751211044161,-418.92845179,0.00021917,2]
[368563505,1751211044170,-1531.94,0.00021917,2]
[368563507,1751211044180,-519.81,0.00021917,2]
[368563509,1751211044189,-490.0,0.00021917,2]
[368563511,1751211044199,-424.1938609,0.00021917,2]
[368563513,1751211044208,-1753.28,0.00021917,2]
[368563514,1751211044217,-490.0,0.00021917,2]
[368563516,1751211044226,-662.15,0.00021917,2]
[368563518,1751211044235,-490.0,0.00021917,2]
[368563520,1751211044244,-490.0,0.00021917,2]
[368563522,1751211044253,-490.0,0.00021917,2]
[368563524,1751211044262,-779.16,0.00021917,2]
[368563526,1751211044271,-1072.24,0.00021917,2]
[368563528,1751211044280,-2135.99,0.00021917,2]
[368563530,1751211044289,-1585.12,0.00021917,2]
[368563532,1751211044298,-490.0,0.00021917,2]
[368563534,1751211044307,-490.0,0.00021917,2]
[368563536,1751211044317,-490.0,0.00021917,2]
[368563538,1751211044325,-523.98,0.00021917,2]
[368563540,1751211044334,-490.0,0.00021917,2]
[368563542,1751211044343,-2725.21,0.00021917,2]
[368563544,1751211044352,-150.0,0.00021917,2]
[368563546,1751211044362,-490.0,0.00021917,2]
[368563548,1751211044372,-490.0,0.00021917,2]
[368563550,1751211044381,-224.01218053,0.00021917,2]
[368563552,1751211044390,-490.0,0.00021917,2]
[368563554,1751211044400,-490.0,0.00021917,2]
[368563556,1751211044409,-490.0,0.00021917,2]
[368563558,1751211044419,-150.91381745,0.00021917,2]
[368563559,1751211044428,-500.0,0.00021917,2]
[368563561,1751211044438,-490.0,0.00021917,2]
[368563562,1751211044447,-500.0,0.00021917,2]
[368563564,1751211044457,-1500.0,0.00021917,2]
[368563566,1751211044467,-490.0,0.00021917,2]
[368563567,1751211044476,-490.0,0.00021917,2]
[368563569,1751211044486,-490.0,0.00021917,2]
[368563571,1751211044495,-490.0,0.00021917,2]
[368563572,1751211044504,-680.71,0.00021917,2]
[368563574,1751211044514,-490.0,0.00021917,2]
[368563576,1751211044522,-490.0,0.00021917,2]
[368563578,1751211044532,-490.0,0.00021917,2]
[368563580,1751211044542,-2178.0,0.00021917,2]
[368563581,1751211044551,-2531.77,0.00021917,2]
[368563583,1751211044561,-2067.9,0.00021917,2]
[368563585,1751211044571,-895.17,0.00021917,2]
[368563587,1751211044581,-490.0,0.00021917,2]
[368563588,1751211044590,-1344.1,0.00021917,2]
[368563590,1751211044599,-580.52,0.00021917,2]
[368563592,1751211044608,-1324.87,0.00021917,2]
[368563594,1751211044618,-490.0,0.00021917,2]
[368563595,1751211044627,-2044.79,0.00021917,2]
[368563597,1751211044637,-490.0,0.00021917,2]
[368563599,1751211044646,-490.0,0.00021917,2]
[368563601,1751211044656,-1916.1,0.00021917,2]
[368563602,1751211044665,-525.68,0.00021917,2]
[368563604,1751211044674,-490.0,0.00021917,2]
[368563606,1751211044683,-490.0,0.00021917,2]
[368563607,1751211044692,-490.0,0.00021917,2]
[368563609,1751211044704,-490.0,0.00021917,2]
[368563611,1751211044713,-490.0,0.00021917,2]
[368563613,1751211044722,-490.0,0.00021917,2]
[368563614,1751211044732,-490.0,0.00021917,2]
[368563616,1751211044743,-490.0,0.00021917,2]
[368563618,1751211044752,-497.49213274,0.00021917,2]
[368563620,1751211044761,-490.0,0.00021917,2]
[368563621,1751211044771,-490.0,0.00021917,2]
[368563623,1751211044782,-490.0,0.00021917,2]
[368563625,1751211044791,-490.0,0.00021917,2]
[368563627,1751211044801,-4039.032625,0.00021917,2]
[368563628,1751211044811,-3513.89,0.00021917,2]
[368563630,1751211044820,-1085.78,0.00021917,2]
[368563632,1751211044830,-490.0,0.00021917,2]
[368563634,1751211044839,-537.22,0.00021917,2]
[368563636,1751211044848,-490.0,0.00021917,2]
[368563638,1751211044858,-490.0,0.00021917,2]
[368563640,1751211044867,-170.34621186,0.00021917,2]
[368563641,1751211044877,-917.88,0.00021917,2]
[368563643,1751211044886,-1153.76,0.00021917,2]
[368563645,1751211044895,-630.7,0.00021917,2]
[368563647,1751211044904,-490.0,0.00021917,2]
[368563649,1751211044914,-490.0,0.00021917,2]
[368563650,1751211044923,-490.0,0.00021917,2]
[368563652,1751211044932,-490.0,0.00021917,2]
[368563654,1751211044942,-490.0,0.00021917,2]
[368563656,1751211044951,-681.35,0.00021917,2]
[368563658,1751211044961,-500.0,0.00021917,2]
[368563659,1751211044970,-500.0,0.00021917,2]
[368563661,1751211044979,-500.0,0.00021917,2]
[368563663,1751211044989,-500.0,0.00021917,2]
[368563665,1751211044998,-490.0,0.00021917,2]
[368563666,1751211045007,-500.0,0.00021917,2]
[368563685,1751211045202,-482.35033617,0.00021917,2]
[368563687,1751211045212,-539.19,0.00021917,2]
[368563688,1751211045222,-490.0,0.00021917,2]
[368563690,1751211045231,-3168.37,0.00021917,2]
[368563692,1751211045240,-490.0,0.00021917,2]
[368563694,1751211045250,-529.72026219,0.00021917,2]
[368563696,1751211045259,-1966.49,0.00021917,2]
[368563698,1751211045268,-2196.99,0.00021917,2]
[368563700,1751211045277,-490.0,0.00021917,2]
[368563702,1751211045286,-490.0,0.00021917,2]
[368563704,1751211045295,-330.24527045,0.00021917,2]
[368563705,1751211045304,-533.31806456,0.00021917,2]
[368563707,1751211045313,-490.0,0.00021917,2]
[368563709,1751211045323,-490.0,0.00021917,2]
[368563711,1751211045332,-490.0,0.00021917,2]
[368563712,1751211045341,-490.0,0.00021917,2]
[368563714,1751211045350,-1015.26,0.00021917,2]
[368563716,1751211045359,-1757.0,0.00021917,2]
[368563718,1751211045369,-1166.39,0.00021917,2]
[368563720,1751211045378,-568.45,0.00021917,2]
[368563722,1751211045387,-490.0,0.00021917,2]
[368563723,1751211045397,-1317.46,0.00021917,2]
[368563725,1751211045406,-2289.06,0.00021917,2]
[368563727,1751211045416,-490.0,0.00021917,2]
[368563729,1751211045425,-490.0,0.00021917,2]
[368563731,1751211045434,-490.0,0.00021917,2]
[368563733,1751211045445,-490.0,0.00021917,2]
[368563735,1751211045455,-1946.74,0.00021917,2]
[368563736,1751211045464,-490.0,0.00021917,2]
[368563738,1751211045474,-490.0,0.00021917,2]
[368563740,1751211045483,-490.0,0.00021917,2]
[368563742,1751211045493,-490.0,0.00021917,2]
[368563744,1751211045502,-258.11623734,0.00021917,2]
[368563746,1751211045511,-1504.05,0.00021917,2]
[368563747,1751211045520,-595.89,0.00021917,2]
[368563749,1751211045529,-2078.98,0.00021917,2]
[368563751,1751211045539,-1555.86,0.00021917,2]
[368563753,1751211045548,-2915.39,0.00021917,2]
[368563755,1751211045556,-581.78,0.00021917,2]
[368563757,1751211045566,-1038.47,0.00021917,2]
[368563758,1751211045575,-691.61,0.00021917,2]
[368563760,1751211045583,-1036.28,0.00021917,2]
[368563762,1751211045592,-1127.18,0.00021917,2]
[368563764,1751211045601,-2622.05,0.00021917,2]
[368563766,1751211045610,-490.0,0.00021917,2]
[368563767,1751211045619,-1009.82,0.00021917,2]
[368563769,1751211045629,-898.96,0.00021917,2]
[368563771,1751211045638,-490.0,0.00021917,2]
[368563772,1751211045647,-490.0,0.00021917,2]
[368563774,1751211045657,-1160.55,0.00021917,2]
[368563776,1751211045666,-490.0,0.00021917,2]
[368563778,1751211045675,-490.0,0.00021917,2]
[368563780,1751211045684,-567.9,0.00021917,2]
[368563781,1751211045694,-490.0,0.00021917,2]
[368563783,1751211045705,-490.0,0.00021917,2]
[368563785,1751211045714,-150.0,0.00021917,2]
[368563787,1751211045723,-1774.55,0.00021917,2]
[368563789,1751211045732,-2047.11,0.00021917,2]
[368563790,1751211045742,-814.16,0.00021917,2]
[368563792,1751211045752,-490.0,0.00021917,2]
[368563794,1751211045761,-490.0,0.00021917,2]
[368563796,1751211045771,-490.0,0.00021917,2]
[368563798,1751211045782,-490.0,0.00021917,2]
[368563800,1751211045790,-1483.88,0.00021917,2]
[368563802,1751211045800,-626.86,0.00021917,2]
[368563803,1751211045809,-221.87575256,0.00021917,2]
[368563805,1751211045818,-490.0,0.00021917,2]
[368563807,1751211045827,-150.0,0.00021917,2]
[368563809,1751211045836,-490.0,0.00021917,2]
[368563811,1751211045845,-490.0,0.00021917,2]
[368563813,1751211045854,-490.0,0.00021917,2]
[368563814,1751211045863,-150.0,0.00021917,2]
[368563816,1751211045873,-553.14,0.00021917,2]
[368563818,1751211045882,-2697.6,0.00021917,2]
[368563820,1751211045892,-584.88,0.00021917,2]
[368563823,1751211045901,-2089.45,0.00021917,2]
[368563826,1751211045910,-490.0,0.00021917,2]
[368563828,1751211045919,-490.0,0.00021917,2]
[368563830,1751211045928,-1065.05,0.00021917,2]
[368563832,1751211045937,-2981.66,0.00021917,2]
[368563833,1751211045947,-490.0,0.00021917,2]
[368563835,1751211045956,-490.0,0.00021917,2]
[368563837,1751211045965,-490.0,0.00021917,2]
[368563839,1751211045975,-490.0,0.00021917,2]
[368563841,1751211045985,-1590.18,0.00021917,2]
[368563843,1751211045995,-490.0,0.00021917,2]
[368563845,1751211046004,-490.0,0.00021917,2]
[368563847,1751211046012,-490.0,0.00021917,2]
[368563848,1751211046021,-490.0,0.00021917,2]
[368563850,1751211046030,-1949.43,0.00021917,2]
[368563852,1751211046040,-490.0,0.00021917,2]
[368563854,1751211046049,-490.0,0.00021917,2]
[368563856,1751211046059,-490.0,0.00021917,2]
[368563858,1751211046069,-490.0,0.00021917,2]
[368563860,1751211046078,-1161.67,0.00021917,2]
[368563862,1751211046088,-490.0,0.00021917,2]
[368563863,1751211046097,-2439.44,0.00021917,2]
[368563865,1751211046107,-490.0,0.00021917,2]
[368563867,1751211046116,-886.51,0.00021917,2]
[368563869,1751211046125,-2379.56,0.00021917,2]
[368563871,1751211046135,-490.0,0.00021917,2]
[368563873,1751211046145,-978.96,0.00021917,2]
[368563875,1751211046154,-490.0,0.00021917,2]
[368563877,1751211046163,-1543.55,0.00021917,2]
[368563879,1751211046173,-490.0,0.00021917,2]
[368563881,1751211046182,-559.9,0.00021917,2]
[368563882,1751211046191,-1339.58,0.00021917,2]
[368563884,1751211046200,-490.0,0.00021917,2]
[368563886,1751211046210,-490.0,0.00021917,2]
[368563888,1751211046218,-490.0,0.00021917,2]
[368563890,1751211046229,-490.0,0.00021917,2]
[368563892,1751211046238,-864.29,0.00021917,2]
[368563894,1751211046248,-1964.82,0.00021917,2]
[368563896,1751211046257,-1060.7,0.00021917,2]
[368563897,1751211046267,-2056.47,0.00021917,2]
[368563899,1751211046276,-490.0,0.00021917,2]
[368563901,1751211046285,-490.0,0.00021917,2]
[368563903,1751211046295,-490.0,0.00021917,2]
[368563906,1751211046313,-2779.86,0.00021917,2]
[368563908,1751211046330,-385.39800892,0.00021917,2]
[368563911,1751211046349,-490.0,0.00021917,2]
[368563914,1751211046368,-1156.75,0.00021917,2]
[368563917,1751211046383,-615.8,0.00021917,2]
[368563920,1751211046401,-591.04,0.00021917,2]
[368563923,1751211046420,-490.0,0.00021917,2]
[368563926,1751211046438,-490.0,0.00021917,2]
[368563929,1751211046455,-490.0,0.00021917,2]
[368563932,1751211046474,-490.0,0.00021917,2]
[368563934,1751211046490,-1690.58,0.00021917,2]
[368563937,1751211046505,-490.0,0.00021917,2]
[368563938,1751211046522,-777.86,0.00021917,2]
[368563939,1751211046537,-937.6,0.00021917,2]
[368563940,1751211046553,-877.56,0.00021917,2]
[368563941,1751211046568,-490.0,0.00021917,2]
[368563942,1751211046583,-738.13,0.00021917,2]
[368563943,1751211046598,-490.0,0.00021917,2]
[368563944,1751211046615,-2472.85,0.00021917,2]
[368563945,1751211046629,-490.0,0.00021917,2]
[368563946,1751211046645,-490.0,0.00021917,2]
[368563947,1751211046659,-552.36,0.00021917,2]
[368563948,1751211046675,-490.0,0.00021917,2]
[368563949,1751211046694,-1278.87,0.00021917,2]
[368563950,1751211046712,-1125.59,0.00021917,2]
[368563951,1751211046728,-490.0,0.00021917,2]
[368563952,1751211046745,-730.1,0.00021917,2]
[368563954,1751211046760,-490.0,0.00021917,2]
[368563956,1751211046776,-490.0,0.00021917,2]
[368563958,1751211046792,-490.0,0.00021917,2]
[368563961,1751211046807,-563.36433521,0.00021917,2]
[368563963,1751211046823,-490.0,0.00021917,2]
[368563966,1751211046839,-490.0,0.00021917,2]
[368563969,1751211046854,-2946.57,0.00021917,2]
[368563971,1751211046869,-1121.02,0.00021917,2]
[368563974,1751211046885,-1734.8,0.00021917,2]
[368563976,1751211046899,-2989.36,0.00021917,2]
[368563979,1751211046915,-2656.79,0.00021917,2]
[368563982,1751211046931,-490.0,0.00021917,2]
[368563984,1751211046946,-520.11,0.00021917,2]
[368563987,1751211046962,-496.28081116,0.00021917,2]
[368563990,1751211046978,-606.54,0.00021917,2]
[368563992,1751211046994,-3444.5,0.00021917,2]
[368563995,1751211047009,-531.54,0.00021917,2]
[368563998,1751211047024,-492.77845165,0.00021917,2]
[368564000,1751211047039,-490.0,0.00021917,2]
[368564003,1751211047054,-490.0,0.00021917,2]
[368564006,1751211047070,-900.5,0.00021917,2]
[368564008,1751211047084,-1633.36,0.00021917,2]
[368564011,1751211047100,-877.89,0.00021917,2]
[368564014,1751211047116,-1658.34,0.00021917,2]
[368564016,1751211047131,-490.0,0.00021917,2]
[368564019,1751211047147,-339.00541149,0.00021917,2]
[368564022,1751211047162,-2951.61,0.00021917,2]
[368564024,1751211047177,-1274.05,0.00021917,2]
[368564027,1751211047192,-490.0,0.00021917,2]
[368564029,1751211047208,-490.0,0.00021917,2]
[368564032,1751211047223,-490.0,0.00021917,2]
[368564035,1751211047240,-490.0,0.00021917,2]
[368564037,1751211047256,-1363.14,0.00021917,2]
[368564040,1751211047272,-490.0,0.00021917,2]
[368564043,1751211047288,-490.0,0.00021917,2]
[368564046,1751211047304,-713.48,0.00021917,2]
[368564048,1751211047320,-490.0,0.00021917,2]
[368564051,1751211047335,-1085.06,0.00021917,2]
[368564054,1751211047351,-490.0,0.00021917,2]
[368564056,1751211047366,-720.05,0.00021917,2]
[368564059,1751211047383,-525.32,0.00021917,2]
[368564062,1751211047398,-490.0,0.00021917,2]
[368564064,1751211047413,-490.0,0.00021917,2]
[368564067,1751211047429,-1042.92,0.00021917,2]
[368564070,1751211047444,-490.0,0.00021917,2]
[368564072,1751211047460,-490.0,0.00021917,2]
[368564073,1751211047476,-490.0,0.00021917,2]
[368564074,1751211047492,-490.0,0.00021917,2]
[368564077,1751211047508,-490.0,0.00021917,2]
[368564078,1751211047524,-490.0,0.00021917,2]
[368564079,1751211047539,-490.0,0.00021917,2]
[368564080,1751211047554,-490.0,0.00021917,2]
[368564081,1751211047570,-490.0,0.00021917,2]
[368564082,1751211047585,-490.0,0.00021917,2]
[368564083,1751211047601,-497.90322694,0.00021917,2]
[368564084,1751211047616,-1267.97,0.00021917,2]
[368564085,1751211047632,-657.67,0.00021917,2]
[368564086,1751211047648,-859.86,0.00021917,2]
[368564087,1751211047665,-499.14,0.00021917,2]
[368564088,1751211047681,-490.0,0.00021917,2]
[368564089,1751211047697,-760.31,0.00021917,2]
[368564090,1751211047717,-490.0,0.00021917,2]
[368564091,1751211047732,-2462.82,0.00021917,2]
[368564092,1751211047750,-542.42,0.00021917,2]
[368564093,1751211047765,-490.0,0.00021917,2]
[368564094,1751211047781,-490.0,0.00021917,2]
[368564095,1751211047797,-490.0,0.00021917,2]
[368564096,1751211047813,-629.3,0.00021917,2]
[368564097,1751211047829,-490.0,0.00021917,2]
[368564098,1751211047844,-2038.63,0.00021917,2]
[368564099,1751211047861,-591.57,0.00021917,2]
[368564100,1751211047876,-2733.16,0.00021917,2]
[368564101,1751211047892,-857.75,0.00021917,2]
[368564102,1751211047907,-493.32020711,0.00021917,2]
[368564103,1751211047922,-1997.94,0.00021917,2]
[368564104,1751211047937,-1850.88,0.00021917,2]
[368564105,1751211047952,-490.0,0.00021917,2]
[368564106,1751211047967,-490.0,0.00021917,2]
[368564107,1751211047983,-490.0,0.00021917,2]
[368564108,1751211047999,-490.0,0.00021917,2]
[368564109,1751211048015,-361.5349142,0.00021917,2]
[368564110,1751211048032,-2756.79,0.00021917,2]
[368564111,1751211048049,-598.0,0.00021917,2]
[368564112,1751211048068,-490.0,0.00021917,2]
[368564113,1751211048078,-608.76,0.00021917,2]
[368564114,1751211048088,-490.0,0.00021917,2]
[368564115,1751211048099,-490.0,0.00021917,2]
[368564116,1751211048108,-490.0,0.00021917,2]
[368564117,1751211048118,-490.0,0.00021917,2]
[368564118,1751211048128,-490.0,0.00021917,2]
[368564119,1751211048479,-3318.74,0.00021917,2]
[368564120,1751211048500,-546.92,0.00021917,2]
[368564121,1751211048525,-1626.25,0.00021917,2]
[368564122,1751211048546,-805.36,0.00021917,2]
[368564123,1751211048556,-490.0,0.00021917,2]
[368564124,1751211048566,-490.0,0.00021917,2]
[368564125,1751211048576,-533.23,0.00021917,2]
[368564126,1751211048586,-490.0,0.00021917,2]
[368564127,1751211048596,-659.79,0.00021917,2]
[368564128,1751211048606,-1066.62,0.00021917,2]
[368564129,1751211048616,-520.84,0.00021917,2]